fUST/lending_fUST_20241217
["ID","MTS","AMOUNT","RATE_DAILY","PERIOD"]
[345594170,1734373863372,-500.0,0.00028767,7]
[345594171,1734373863382,-500.0,0.00028767,2]
[345594172,1734373863392,-11026.87,0.00028767,7]
[345594173,1734373863402,-49791.75,0.00028767,7]
[345594174,1734373863411,-566.21,0.00028767,2]
[345594175,1734373863421,-500.0,0.00028767,7]
[345594176,1734373863431,-5132.11,0.00028767,7]
[345594177,1734373863440,-520.07,0.00028767,7]
[345594178,1734373863450,-500.0,0.00028767,7]
[345594179,1734373863461,-500.0,0.00028767,7]
[345594180,1734373863470,-500.0,0.00028767,7]
[345594181,1734373863480,-500.0,0.00028767,7]
[345594182,1734373863490,-1663.69,0.00028767,7]
[345594183,1734373863500,-2646.59,0.00028767,7]
[345594184,1734373863511,-500.0,0.00028767,7]
[345594185,1734373863522,-500.0,0.00028767,7]
[345594186,1734373863533,-524.48,0.00028767,7]
[345594187,1734373863543,-941.13,0.00028767,7]
[345594188,1734373863554,-2823.16,0.00028767,7]
[345594189,1734373863564,-500.0,0.00028767,7]
[345594190,1734373863573,-500.0,0.00028767,7]
[345594191,1734373863583,-1610.16,0.00028767,7]
[345594192,1734373863592,-700.22,0.00028767,7]
[345594193,1734373863604,-500.0,0.00028767,7]
[345594194,1734373863614,-2623.08,0.00028767,7]
[345594195,1734373863624,-500.0,0.00028767,7]
[345594196,1734373863633,-4957.14,0.00028767,7]
[345594197,1734373863643,-500.0,0.00028767,7]
[345594198,1734373863653,-942.66,0.00028767,7]
[345594199,1734373863663,-800.65,0.00028767,7]
[345594200,1734373863672,-500.0,0.00028767,7]
[345594201,1734373863682,-3274.75,0.00028767,7]
[345594202,1734373863693,-2688.22,0.00028767,7]
[345594203,1734373863703,-790.52,0.00028767,7]
[345594204,1734373863714,-500.0,0.00028767,7]
[345594205,1734373863723,-500.0,0.00028767,7]
[345594206,1734373863733,-810.73,0.00028767,7]
[345594207,1734373863744,-2340.34,0.00028767,7]
[345594208,1734373863753,-553.7,0.00028767,7]
[345594209,1734373863763,-500.0,0.00028767,7]
[345594210,1734373863774,-340.442045,0.00028767,7]
[345594211,1734373863783,-537.41292189,0.00028767,7]
[345594212,1734373863793,-2321.11,0.00028767,7]
[345594213,1734373863803,-340.442045,0.00028767,7]
[345594214,1734373863813,-1581.38,0.00028767,7]
[345594215,1734373863823,-418.71657476,0.00028767,7]
[345594216,1734373863833,-1317.62,0.00028767,7]
[345594217,1734373863844,-500.0,0.00028767,7]
[345594218,1734373863854,-984.71,0.00028767,7]
[345594219,1734373863864,-505.61,0.00028767,7]
[345594220,1734373863874,-500.0,0.00028767,7]
[345594221,1734373863883,-1165.57,0.00028767,7]
[345594222,1734373863893,-520.87,0.00028767,7]
[345594223,1734373863903,-696.46,0.00028767,7]
[345594224,1734373863912,-850.46,0.00028767,7]
[345594225,1734373863922,-184.0,0.00028767,2]
[345594226,1734373863932,-165.3069744,0.000288,7]
[345594227,1734373863942,-162.76500062,0.00028849,2]
[345594228,1734373863951,-500.89350214,0.00028864,2]
[345594229,1734373863964,-151.0,0.00028864,7]
[345594230,1734373863973,-248.848108,0.00028864,7]
[345594231,1734373863983,-151.0,0.00028864,7]
[345594232,1734373863995,-151.0,0.00028864,7]
[345594233,1734373864004,-151.0,0.00028864,7]
[345594234,1734373864014,-151.0,0.00028864,7]
[345594235,1734373864024,-1000.0,0.000289,5]
[345594236,1734373864033,-600.0,0.000289,2]
[345594237,1734373864043,-151.0,0.00028916,7]
[345594238,1734373864053,-626.7427338,0.00028916,2]
[345594239,1734373864063,-357.6220671,0.00028966,30]
[345594240,1734373864072,-165.69,0.00028982,7]
[345594241,1734373864081,-234.201,0.00028999,21]
[345594242,1734373864091,-865.1378129,0.00029,2]
[345594243,1734373864100,-185.73316216,0.00029,14]
[345594244,1734373864109,-5035.61363742,0.00029,30]
[345594245,1734373864118,-3511.56013288,0.00029,2]
[345594246,1734373864128,-1000.0,0.00029,29]
[345594247,1734373864137,-57232.19962861,0.00029,2]
[345594248,1734373864146,-253.89228,0.00029,120]
[345594249,1734373864157,-224.937378,0.00029,7]
[345594250,1734373864166,-151.0,0.00029,7]
[345594251,1734373864175,-300.0,0.00029,2]
[345594252,1734373864185,-151.0,0.00029,7]
[345594253,1734373864195,-183.951485,0.00029,7]
[345594254,1734373864204,-183.951485,0.00029,7]
[345594255,1734373864217,-231.464839,0.00029,7]
[345594256,1734373864227,-231.464839,0.00029,7]
[345594257,1734373864236,-205.081789,0.00029,7]
[345594258,1734373864246,-205.081789,0.00029,7]
[345594259,1734373864255,-151.0,0.00029,7]
[345594260,1734373864266,-151.0,0.00029,7]
[345594261,1734373864276,-326.257217,0.00029,7]
[345594262,1734373864286,-326.257217,0.00029,7]
[345594263,1734373864296,-6171.2574849,0.00029,2]
[345594264,1734373864305,-760.292291,0.00029,7]
[345594265,1734373864315,-760.292291,0.00029,7]
[345594266,1734373864325,-151.0,0.00029,7]
[345594267,1734373864441,-268.600536,0.00029,7]
[345594268,1734373864452,-268.600536,0.00029,7]
[345594269,1734373864466,-151.0,0.00029,7]
[345594270,1734373864476,-303.11214331,0.00029,2]
[345594271,1734373864487,-150.72,0.00029041,7]
[345594272,1734373864497,-500.0,0.00029041,7]
[345594273,1734373864507,-151.0,0.00029041,7]
[345594274,1734373864517,-151.0,0.00029041,7]
[345594275,1734373864531,-151.0,0.00029041,7]
[345594276,1734373864540,-151.0,0.00029041,7]
[345594277,1734373864550,-151.0,0.00029041,7]
[345594278,1734373864559,-263.02011113,0.00029041,7]
[345594279,1734373864569,-618.39730173,0.00029041,7]
[345594280,1734373864578,-500.0,0.00029041,7]
[345594281,1734373864588,-500.0,0.00029041,7]
[345594282,1734373864597,-500.0,0.00029041,7]
[345594283,1734373864607,-414.49180667,0.00029041,7]
[345594284,1734373864616,-781.2,0.00029041,7]
[345594285,1734373864625,-500.0,0.00029041,7]
[345594286,1734373864634,-652.55,0.00029041,7]
[345594287,1734373864644,-500.0,0.00029041,7]
[345594288,1734373864654,-500.0,0.00029041,7]
[345594289,1734373864664,-151.0,0.00029041,7]
[345594290,1734373864673,-500.0,0.00029041,7]
[345594291,1734373864682,-500.0,0.00029041,7]
[345594292,1734373864692,-528.469171,0.00029041,7]
[345594293,1734373864701,-528.469171,0.00029041,7]
[345594294,1734373864712,-500.0,0.00029041,7]
[345594295,1734373864722,-1942.51,0.00029041,7]
[345594296,1734373864732,-549.01,0.00029041,7]
[345594297,1734373864741,-738.47,0.00029041,7]
[345594298,1734373864752,-500.0,0.00029041,7]
[345594299,1734373864761,-500.0,0.00029041,7]
[345594300,1734373864770,-683.4,0.00029041,7]
[345594301,1734373864780,-500.0,0.00029041,7]
[345594302,1734373864789,-965.75,0.00029041,7]
[345594303,1734373864799,-2608.94,0.00029041,7]
[345594304,1734373864808,-615.23,0.00029041,7]
[345594305,1734373864818,-864.53,0.00029041,7]
[345594306,1734373864828,-449.00163991,0.00029041,7]
[345594307,1734373864839,-500.0,0.00029041,7]
[345594308,1734373864848,-938.96,0.00029041,7]
[345594309,1734373864858,-168.02,0.00029041,7]
[345594310,1734373864867,-563.36,0.00029041,7]
[345594311,1734373864876,-500.0,0.00029041,7]
[345594312,1734373864886,-1710.74,0.00029041,7]
[345594313,1734373864895,-855.63,0.00029041,7]
[345594314,1734373864904,-500.0,0.00029041,7]
[345594315,1734373864913,-500.0,0.00029041,7]
[345594316,1734373864923,-1166.87,0.00029041,7]
[345594317,1734373864933,-2025.4,0.00029041,2]
[345594318,1734373864943,-500.0,0.00029041,7]
[345594319,1734373864952,-835.88,0.00029041,7]
[345594320,1734373864964,-1056.72,0.00029041,7]
[345594321,1734373864973,-500.0,0.00029041,7]
[345594322,1734373864982,-809.72,0.00029041,7]
[345594323,1734373864991,-505.1671724,0.00029041,7]
[345594324,1734373865000,-2441.19,0.00029041,7]
[345594325,1734373865009,-575.98209972,0.00029041,7]
[345594326,1734373865019,-1343.92,0.00029041,7]
[345594327,1734373865028,-500.0,0.00029041,7]
[345594328,1734373865037,-500.0,0.00029041,7]
[345594329,1734373865046,-1000.0,0.00029041,2]
[345594330,1734373865057,-500.0,0.00029041,7]
[345594331,1734373865067,-500.0,0.00029041,7]
[345594332,1734373865076,-669.81,0.00029041,7]
[345594333,1734373865086,-1088.46,0.00029041,7]
[345594334,1734373865095,-500.0,0.00029041,7]
[345594335,1734373865104,-579.63,0.00029041,7]
[345594336,1734373865114,-151.0,0.00029041,7]
[345594337,1734373865124,-1538.31,0.00029041,7]
[345594338,1734373865133,-151.0,0.00029041,7]
[345594339,1734373865143,-740.26,0.00029041,7]
[345594340,1734373865153,-500.0,0.00029041,2]
[345594341,1734373865162,-1022.87,0.00029041,7]
[345594342,1734373865172,-500.0,0.00029041,7]
[345594343,1734373865181,-797.18,0.00029041,7]
[345594344,1734373865191,-151.0,0.00029041,7]
[345594345,1734373865200,-201.35306,0.00029041,7]
[345594346,1734373865209,-500.0,0.00029041,7]
[345594347,1734373865220,-500.0,0.00029041,7]
[345594348,1734373865230,-500.0,0.00029041,7]
[345594349,1734373865239,-500.0,0.00029041,7]
[345594350,1734373865249,-500.0,0.00029041,7]
[345594351,1734373865258,-1048.19,0.00029041,7]
[345594352,1734373865269,-500.0,0.00029041,7]
[345594353,1734373865278,-500.0,0.00029041,7]
[345594354,1734373865288,-16430.12,0.00029041,7]
[345594355,1734373865298,-500.0,0.00029041,7]
[345594356,1734373865307,-500.0,0.00029041,7]
[345594357,1734373865316,-1967.34,0.00029041,7]
[345594358,1734373865327,-2609.43,0.00029041,7]
[345594359,1734373865336,-500.0,0.00029041,7]
[345594360,1734373865347,-1078.98,0.00029041,7]
[345594361,1734373865358,-3929.87,0.00029041,5]
[345594362,1734373865367,-1884.79,0.00029041,7]
[345594363,1734373865379,-500.0,0.00029041,7]
[345594364,1734373865389,-500.0,0.00029041,7]
[345594365,1734373865399,-1246.41,0.00029041,7]
[345594366,1734373865409,-500.0,0.00029041,7]
[345594367,1734373865418,-9596.26,0.00029041,7]
[345594368,1734373865429,-516.43,0.00029041,7]
[345594369,1734373865439,-500.0,0.00029041,7]
[345594370,1734373865448,-500.0,0.00029041,7]
[345594371,1734373865458,-654.36,0.00029041,7]
[345594372,1734373865470,-500.0,0.00029041,7]
[345594373,1734373865480,-8176.81,0.00029041,7]
[345594374,1734373865489,-500.0,0.00029041,7]
[345594375,1734373865498,-500.0,0.00029041,2]
[345594376,1734373865508,-11026.87,0.00029041,7]
[345594377,1734373865521,-49791.75,0.00029041,7]
[345594378,1734373865531,-566.21,0.00029041,2]
[345594379,1734373865540,-500.0,0.00029041,7]
[345594380,1734373865550,-5132.11,0.00029041,7]
[345594381,1734373865561,-520.07,0.00029041,7]
[345594382,1734373865571,-500.0,0.00029041,7]
[345594383,1734373865580,-500.0,0.00029041,7]
[345594384,1734373865593,-500.0,0.00029041,7]
[345594385,1734373865603,-500.0,0.00029041,7]
[345594386,1734373865613,-1663.69,0.00029041,7]
[345594387,1734373865622,-2646.59,0.00029041,7]
[345594388,1734373865632,-261.62976515,0.00029041,7]
[345594389,1734373865641,-500.0,0.00029041,7]
[345594390,1734373865651,-524.48,0.00029041,7]
[345594391,1734373865660,-941.13,0.00029041,7]
[345594392,1734373865670,-2823.16,0.00029041,7]
[345594393,1734373865680,-500.0,0.00029041,7]
[345594394,1734373865690,-500.0,0.00029041,7]
[345594395,1734373865700,-1610.16,0.00029041,7]
[345594396,1734373865709,-700.22,0.00029041,7]
[345594397,1734373865719,-500.0,0.00029041,7]
[345594398,1734373865728,-2623.08,0.00029041,7]
[345594399,1734373865738,-500.0,0.00029041,7]
[345594400,1734373865747,-151.0,0.00029041,7]
[345594401,1734373865757,-4957.14,0.00029041,7]
[345594402,1734373865767,-363.39800288,0.00029041,7]
[345594403,1734373865777,-151.0,0.00029041,7]
[345594404,1734373865787,-942.66,0.00029041,7]
[345594405,1734373865797,-800.65,0.00029041,7]
[345594406,1734373865806,-500.0,0.00029041,7]
[345594407,1734373865816,-3274.75,0.00029041,7]
[345594408,1734373865825,-2688.22,0.00029041,7]
[345594409,1734373865835,-790.52,0.00029041,7]
[345594410,1734373865844,-500.0,0.00029041,7]
[345594411,1734373865853,-500.0,0.00029041,7]
[345594412,1734373865863,-810.73,0.00029041,7]
[345594413,1734373865872,-2340.34,0.00029041,7]
[345594414,1734373865882,-553.7,0.00029041,7]
[345594415,1734373865892,-500.0,0.00029041,7]
[345594416,1734373866002,-2321.11,0.00029041,7]
[345594417,1734373866012,-1581.38,0.00029041,7]
[345594418,1734373866023,-1317.62,0.00029041,7]
[345594419,1734373866033,-500.0,0.00029041,7]
[345594420,1734373866043,-984.71,0.00029041,7]
[345594421,1734373866053,-505.61,0.00029041,7]
[345594422,1734373866063,-500.0,0.00029041,7]
[345594423,1734373866073,-1165.57,0.00029041,7]
[345594424,1734373866083,-520.87,0.00029041,7]
[345594425,1734373866093,-696.46,0.00029041,7]
[345594426,1734373866103,-1280.8908997,0.00029062,2]
[345594427,1734373866112,-143000.08696385,0.000291,2]
[345594428,1734373866122,-316842.44409086,0.000291,2]
[345594429,1734373866132,-151.0,0.000291,7]
[345594430,1734373866142,-151.0,0.000291,7]
[345594431,1734373866152,-257.646759,0.000291,7]
[345594432,1734373866162,-151.0,0.000291,7]
[345594433,1734373866171,-171.128978,0.000291,7]
[345594434,1734373866181,-151.0,0.000291,7]
[345594435,1734373866191,-151.0,0.000291,7]
[345594436,1734373866201,-151.0,0.000291,7]
[345594437,1734373866210,-151.0,0.000291,7]
[345594438,1734373866220,-151.0,0.000291,7]
[345594439,1734373866229,-151.0,0.000291,7]
[345594440,1734373866239,-183.951485,0.000291,7]
[345594441,1734373866248,-183.951485,0.000291,7]
[345594442,1734373866258,-183.951485,0.000291,7]
[345594443,1734373866268,-183.951485,0.000291,7]
[345594444,1734373866278,-231.464839,0.000291,7]
[345594445,1734373866287,-231.464839,0.000291,7]
[345594446,1734373866297,-231.464839,0.000291,7]
[345594447,1734373866307,-231.464839,0.000291,7]
[345594448,1734373866317,-151.0,0.000291,7]
[345594449,1734373866327,-151.0,0.000291,7]
[345594450,1734373866338,-151.0,0.000291,7]
[345594451,1734373866349,-151.0,0.000291,7]
[345594452,1734373866359,-151.0,0.000291,7]
[345594453,1734373866370,-151.0,0.000291,7]
[345594454,1734373866380,-151.0,0.000291,7]
[345594455,1734373866389,-151.0,0.000291,7]
[345594456,1734373866399,-151.0,0.000291,7]
[345594457,1734373866408,-528.469171,0.000291,7]
[345594458,1734373866417,-528.469171,0.000291,7]
[345594459,1734373866427,-730.43,0.000291,31]
[345594460,1734373866437,-730.43,0.000291,31]
[345594461,1734373866446,-730.43,0.000291,31]
[345594462,1734373866456,-730.43,0.000291,31]
[345594463,1734373866466,-730.43,0.000291,31]
[345594464,1734373866476,-730.43,0.000291,31]
[345594465,1734373866485,-730.43,0.000291,31]
[345594466,1734373866495,-730.43,0.000291,31]
[345594467,1734373866505,-730.43,0.000291,31]
[345594468,1734373866519,-730.43,0.000291,31]
[345594469,1734373866528,-730.43,0.000291,31]
[345594470,1734373866537,-730.43,0.000291,31]
[345594471,1734373866547,-730.43,0.000291,31]
[345594472,1734373866558,-730.43,0.000291,31]
[345594473,1734373866567,-730.43,0.000291,31]
[345594474,1734373866577,-730.43,0.000291,31]
[345594475,1734373866586,-730.43,0.000291,31]
[345594476,1734373866596,-730.43,0.000291,31]
[345594477,1734373866606,-730.43,0.000291,31]
[345594478,1734373866615,-730.43,0.000291,31]
[345594479,1734373866624,-730.43,0.000291,31]
[345594480,1734373866634,-730.43,0.000291,31]
[345594481,1734373866643,-730.43,0.000291,31]
[345594482,1734373866652,-730.43,0.000291,31]
[345594483,1734373866662,-205.081789,0.000291,7]
[345594484,1734373866672,-205.081789,0.000291,7]
[345594485,1734373866683,-205.081789,0.000291,7]
[345594486,1734373866693,-205.081789,0.000291,7]
[345594487,1734373866702,-151.0,0.000291,7]
[345594488,1734373866713,-151.0,0.000291,7]
[345594489,1734373866723,-151.0,0.000291,7]
[345594490,1734373866732,-151.0,0.000291,7]
[345594491,1734373866742,-151.0,0.000291,7]
[345594492,1734373866752,-151.0,0.000291,7]
[345594493,1734373866762,-151.0,0.000291,7]
[345594494,1734373866772,-326.257217,0.000291,7]
[345594495,1734373866783,-326.257217,0.000291,7]
[345594496,1734373866793,-326.257217,0.000291,7]
[345594497,1734373866803,-326.257217,0.000291,7]
[345594498,1734373866812,-760.292291,0.000291,7]
[345594499,1734373866822,-760.292291,0.000291,7]
[345594500,1734373866832,-760.292291,0.000291,7]
[345594501,1734373866842,-760.292291,0.000291,7]
[345594502,1734373866851,-151.0,0.000291,7]
[345594503,1734373866860,-268.600536,0.000291,7]
[345594504,1734373866870,-268.600536,0.000291,7]
[345594505,1734373866880,-268.600536,0.000291,7]
[345594506,1734373866889,-268.600536,0.000291,7]
[345594507,1734373866899,-151.0,0.000291,7]
[345594508,1734373866908,-151.0,0.000291,7]
[345594509,1734373866918,-151.0,0.000291,7]
[345594510,1734373866928,-151.0,0.000291,7]
[345594511,1734373866938,-193.256821,0.000291,7]
[345594512,1734373866947,-340.442045,0.000291,7]
[345594513,1734373866957,-340.442045,0.000291,7]
[345594514,1734373866969,-340.442045,0.000291,7]
[345594515,1734373866978,-340.442045,0.000291,7]
[345594516,1734373866989,-626.7427338,0.00029141,2]
[345594517,1734373866999,-309.3649371,0.00029178,30]
[345594518,1734373867008,-600.0,0.00029198,2]
[345594519,1734373867017,-2000.0,0.000292,2]
[345594520,1734373867027,-282.57,0.00029223,120]
[345594521,1734373867036,-150.5,0.00029233,120]
[345594522,1734373867046,-160.0,0.00029238,3]
[345594523,1734373867055,-160.9538981,0.00029238,5]
[345594524,1734373867065,-16161.87984744,0.0002924,2]
[345594525,1734373867075,-150.5,0.00029243,120]
[345594526,1734373867085,-303.11214331,0.0002929,2]
[345594527,1734373867094,-155.31137191,0.00029315,7]
[345594528,1734373867103,-200.4,0.00029315,7]
[345594529,1734373867114,-500.0,0.00029315,7]
[345594530,1734373867123,-200.63,0.00029315,7]
[345594531,1734373867133,-151.0,0.00029315,7]
[345594532,1734373867143,-151.0,0.00029315,7]
[345594533,1734373867152,-151.0,0.00029315,7]
[345594534,1734373867162,-183.951485,0.00029315,7]
[345594535,1734373867171,-183.951485,0.00029315,7]
[345594536,1734373867180,-231.464839,0.00029315,7]
[345594537,1734373867189,-231.464839,0.00029315,7]
[345594538,1734373867198,-500.0,0.00029315,7]
[345594539,1734373867208,-500.0,0.00029315,7]
[345594540,1734373867218,-151.0,0.00029315,7]
[345594541,1734373867228,-500.0,0.00029315,7]
[345594542,1734373867238,-151.0,0.00029315,7]
[345594543,1734373867248,-169.023098,0.00029315,7]
[345594544,1734373867257,-781.2,0.00029315,7]
[345594545,1734373867266,-500.0,0.00029315,7]
[345594546,1734373867276,-652.55,0.00029315,7]
[345594547,1734373867285,-500.0,0.00029315,7]
[345594548,1734373867295,-151.0,0.00029315,7]
[345594549,1734373867305,-500.0,0.00029315,7]
[345594550,1734373867315,-500.0,0.00029315,7]
[345594551,1734373867324,-151.0,0.00029315,7]
[345594552,1734373867427,-500.0,0.00029315,7]
[345594553,1734373867437,-528.469171,0.00029315,7]
[345594554,1734373867447,-528.469171,0.00029315,7]
[345594555,1734373867455,-500.0,0.00029315,7]
[345594556,1734373867465,-1942.51,0.00029315,7]
[345594557,1734373867475,-549.01,0.00029315,7]
[345594558,1734373867484,-738.47,0.00029315,7]
[345594559,1734373867494,-500.0,0.00029315,7]
[345594560,1734373867503,-500.0,0.00029315,7]
[345594561,1734373867513,-683.4,0.00029315,7]
[345594562,1734373867526,-500.0,0.00029315,7]
[345594563,1734373867535,-965.75,0.00029315,7]
[345594564,1734373867545,-2608.94,0.00029315,7]
[345594565,1734373867554,-615.23,0.00029315,7]
[345594566,1734373867563,-864.53,0.00029315,7]
[345594567,1734373867574,-500.0,0.00029315,7]
[345594568,1734373867583,-1000.0,0.00029315,28]
[345594569,1734373867593,-1000.0,0.00029315,28]
[345594570,1734373867603,-1000.0,0.00029315,28]
[345594571,1734373867612,-1000.0,0.00029315,28]
[345594572,1734373867622,-1000.0,0.00029315,28]
[345594573,1734373867634,-1000.0,0.00029315,28]
[345594574,1734373867645,-1000.0,0.00029315,28]
[345594575,1734373867654,-1000.0,0.00029315,28]
[345594576,1734373867664,-1000.0,0.00029315,28]
[345594577,1734373867675,-1000.0,0.00029315,28]
[345594578,1734373867685,-1000.0,0.00029315,28]
[345594579,1734373867695,-1000.0,0.00029315,28]
[345594580,1734373867705,-1000.0,0.00029315,28]
[345594581,1734373867715,-1000.0,0.00029315,28]
[345594582,1734373867725,-1000.0,0.00029315,28]
[345594583,1734373867734,-1000.0,0.00029315,28]
[345594584,1734373867744,-1000.0,0.00029315,28]
[345594585,1734373867754,-1000.0,0.00029315,28]
[345594586,1734373867763,-1000.0,0.00029315,28]
[345594587,1734373867773,-1000.0,0.00029315,28]
[345594588,1734373867782,-1000.0,0.00029315,28]
[345594589,1734373867792,-1000.0,0.00029315,28]
[345594590,1734373867801,-1000.0,0.00029315,28]
[345594591,1734373867811,-1000.0,0.00029315,28]
[345594592,1734373867820,-938.96,0.00029315,7]
[345594593,1734373867829,-1000.0,0.00029315,28]
[345594594,1734373867838,-1000.0,0.00029315,28]
[345594595,1734373867847,-1000.0,0.00029315,28]
[345594596,1734373867857,-1000.0,0.00029315,28]
[345594597,1734373867866,-1000.0,0.00029315,28]
[345594598,1734373867876,-1000.0,0.00029315,28]
[345594599,1734373867885,-1000.0,0.00029315,28]
[345594600,1734373867894,-1000.0,0.00029315,28]
[345594601,1734373867904,-1000.0,0.00029315,28]
[345594602,1734373867913,-1000.0,0.00029315,28]
[345594603,1734373867923,-1000.0,0.00029315,28]
[345594604,1734373867932,-1000.0,0.00029315,28]
[345594605,1734373867941,-1000.0,0.00029315,28]
[345594606,1734373867952,-1000.0,0.00029315,28]
[345594607,1734373867961,-1000.0,0.00029315,28]
[345594608,1734373867972,-168.02,0.00029315,7]
[345594609,1734373867982,-1000.0,0.00029315,28]
[345594610,1734373867991,-1000.0,0.00029315,28]
[345594611,1734373868001,-1000.0,0.00029315,28]
[345594612,1734373868011,-1000.0,0.00029315,28]
[345594613,1734373868021,-563.36,0.00029315,7]
[345594614,1734373868030,-1000.0,0.00029315,28]
[345594615,1734373868040,-1000.0,0.00029315,28]
[345594616,1734373868062,-1000.0,0.00029315,28]
[345594617,1734373868079,-1000.0,0.00029315,28]
[345594618,1734373868098,-1000.0,0.00029315,28]
[345594619,1734373868118,-1000.0,0.00029315,28]
[345594620,1734373868139,-1000.0,0.00029315,28]
[345594621,1734373868156,-1000.0,0.00029315,28]
[345594622,1734373868173,-1000.0,0.00029315,28]
[345594623,1734373868190,-1000.0,0.00029315,28]
[345594624,1734373868205,-1000.0,0.00029315,28]
[345594625,1734373868226,-1000.0,0.00029315,28]
[345594626,1734373868245,-1000.0,0.00029315,28]
[345594627,1734373868264,-1000.0,0.00029315,28]
[345594628,1734373868277,-1000.0,0.00029315,28]
[345594629,1734373868297,-1000.0,0.00029315,28]
[345594630,1734373868314,-1000.0,0.00029315,28]
[345594631,1734373868331,-1000.0,0.00029315,28]
[345594632,1734373868344,-1000.0,0.00029315,28]
[345594633,1734373868361,-1000.0,0.00029315,28]
[345594634,1734373868377,-1000.0,0.00029315,28]
[345594635,1734373868392,-1000.0,0.00029315,28]
[345594636,1734373868408,-1000.0,0.00029315,28]
[345594637,1734373868423,-1000.0,0.00029315,28]
[345594638,1734373868439,-1000.0,0.00029315,28]
[345594639,1734373868455,-1000.0,0.00029315,28]
[345594640,1734373868472,-1000.0,0.00029315,28]
[345594641,1734373868487,-1000.0,0.00029315,28]
[345594642,1734373868503,-1000.0,0.00029315,28]
[345594643,1734373868522,-1000.0,0.00029315,28]
[345594644,1734373868537,-1000.0,0.00029315,28]
[345594645,1734373868550,-1000.0,0.00029315,28]
[345594646,1734373868567,-1000.0,0.00029315,28]
[345594647,1734373868582,-1000.0,0.00029315,28]
[345594648,1734373868598,-1000.0,0.00029315,28]
[345594649,1734373868613,-1000.0,0.00029315,28]
[345594650,1734373868628,-1000.0,0.00029315,28]
[345594651,1734373868641,-1000.0,0.00029315,28]
[345594652,1734373868656,-1000.0,0.00029315,28]
[345594653,1734373868673,-1000.0,0.00029315,28]
[345594654,1734373868689,-1000.0,0.00029315,28]
[345594655,1734373868704,-1000.0,0.00029315,28]
[345594656,1734373868720,-1000.0,0.00029315,28]
[345594657,1734373868735,-1000.0,0.00029315,28]
[345594658,1734373868751,-1000.0,0.00029315,28]
[345594659,1734373868767,-1000.0,0.00029315,28]
[345594660,1734373868782,-1000.0,0.00029315,28]
[345594661,1734373868797,-1000.0,0.00029315,28]
[345594662,1734373868812,-1000.0,0.00029315,28]
[345594663,1734373868828,-1000.0,0.00029315,28]
[345594664,1734373868843,-1000.0,0.00029315,28]
[345594665,1734373868857,-1000.0,0.00029315,28]
[345594666,1734373868873,-500.0,0.00029315,7]
[345594667,1734373868889,-1710.74,0.00029315,7]
[345594668,1734373868904,-1000.0,0.00029315,28]
[345594669,1734373868919,-1000.0,0.00029315,28]